Workbook

Sheet Forside
A26: Dette Excel-værktøj er et hjælperedskab til designs af fremtidige resultatbaserede betalingsmodeller for
A27: sociale indsatser, hvor indsatsen varetages af en ekstern leverandør og finansieres af en investor.
A28: Værktøjet gør det muligt at beregne betalingen pr. borger, der kommer i beskæftigelse, givet en række
A29: centrale antagelser vedrørende bl.a. den forventede mereffekt og omkostningerne til indsatsen.
A31: Modellen er udviklet med inspiration i erfaringerne fra SIB-projektet (Social Inklusion og Beskæftigelse),
A32: som blev gennemført i perioden 2020-2023 i et samarbejde mellem DRC Dansk Flygtningehjælp,
A33: Herning Kommune, Viborg Kommune og Poul Due Jensens Fond. Se fanen vedrørende dette projekt.
A40: Project number: | C40: A127669
A41: Date: | C41: 2023-05-28
A42: Created by: | C42: PGM/APHE
A43: Checked by: | C43: JEE
A44: Approved by: | C44: HLE
A45: Version: | C45: 2

Sheet Dashboard
B1: Dashboard
B4: Før indsats (baseline)
B6: Centrale forudsætninger for målgruppen
B8: Gns. arbejdstid pr. person i målgruppen | C8: timer/år | D8: 1000
B9: Gns. løn pr. person i målgruppen | C9: kr./time | D9: 150
B10: Nuværende gns. beskæftigelse | C10: timer/uge | D10: 12
B11: Nuværende gns. overførselsindkomst | C11: kr./år | D11: 100000
B12: Nuværende gns. omkostning ved beskæftigelsesindsats | C12: kr./år | D12: 25000
B13: Andel af målgruppe, der forventes at komme i beskæftigelse uden en indsats | C13: % | D13: 0.2
B16: Indsats
B18: Centrale forudsætninger for indsatsen
B20: Indsatsens første år | C20: år | D20: 2022
B21: Indsatsens sidste år | C21: år | D21: 2022
B23: Indsatsperiode | C23: år | D23: =D21-D20+1 -> 1
B25: ="Beskæftigelseseffekt ved indsatsen "&slutår+1 -> Beskæftigelseseffekt ved indsatsen 2023 | C25: %-point | D25: 0.2
B26: ="Antal år efter "&slutår+1&" hvor beskæftigelseseffekten falder" -> Antal år efter 2023 hvor beskæftigelseseffekten falder | C26: år | D26: 2
B27: ="Forventet årlige fald i beskæftigelseseffekt efter "&slutår+1+D26 -> Forventet årlige fald i beskæftigelseseffekt efter 2025 | C27: % | D27: 0.15
B28: Besparelse på almindelig indsats (i indsatsperioden) | C28: % | D28: 0
B30: Deltagere
B31: Afvigelse fra bruttobeskæftigelse, høj | D31: 0.1
B32: Afvigelse fra bruttobeskæftigelse, lav | D32: -0.1
B35: Investeringer og afkast
B37: Investeringssum, leverandør | C37: kr. | D37: 100000
B38: Investeringssum, myndighed | C38: kr. | D38: 10000
B40: Samlet investering | C40: kr. | D40: =D37+D38 -> 110000
B42: År for tilbagebetaling til investor | C42: År | D42: 2023
B43: Forventet andel af overskud, der skal gå til investor | D43: 0.25
B44: Forventet andel af overskud, der skal gå til myndighed | D44: =1-D43 -> 0.75
B48: Skatter og overførselsindkomster
B50: Kommunal skattesats | C50: % | D50: 0.2
B51: Statsskattesats | C51: % | D51: 0.1
B53: Statsrefusion på kommunale udgifter til overførselsindkomst | C53: % | D53: 0.2

Sheet Resultater
B1: =MID(CELL("filename",A1),1+FIND("]",CELL("filename",A1)),99) -> Resultater
B6: Resultater
B7: Budgetøkonomisk overskud | C7: =Hjælpeark!C46-Hjælpeark!C50-Hjælpeark!C51 -> 21692.8564
B8: Investors andel af budgetøkonomisk overskud | C8: =C7*Dashboard!D43 -> 5423.214101
B9: Myndighed forventer at betale investor i gennemsnit pr. deltager | C9: =C8+Hjælpeark!C50 -> 105423.2141
B11: Myndighed betaler investor, kr. pr. person, der kommer i beskæftigelse | C11: =C9/(Dashboard!D25+Dashboard!D13) -> 263558.0353
B13: Betaling differentieret på deltager
B14: Deltager med gode forudsætninger | C14: =Hjælpeark!C12*C11/Hjælpeark!C14 -> 197668.5264
B15: Deltager med mindre gode forudsætninger | C15: =Hjælpeark!C13*C11/Hjælpeark!C14 -> 329447.5441
B16: Gennemsnit | C16: =AVERAGE(C14:C15) -> 263558.0353

Sheet Inputark
B1: Inputs
B3: Centrale parametre
B5: Kalkulationsrente | C5: 0.035 | D5: år 0 til 35
B6: Kilder:
B7: Finansministeriet: Vejledning om samfundsøkonomiske konsekvensvuirderinger | D7: https://fm.dk/arbejdsomraader/regnemetoder-og-regnemodeller/regnemetoder-og-regnemodeller/vejledning-om-samfundsoekonomiske-konsekvensvurderinger/
B9: Netto-nutidsværdi-år | C9: 2022
B12: Hjælpetabel for diskontering
B13: år | E13: 2022 | F13: =E13+1 -> 2023 | G13: 2024 | H13: 2025 | I13: 2026 | J13: 2027 | K13: 2028 | L13: 2029 | M13: 2030 | N13: 2031 | O13: 2032 | P13: 2033 | Q13: 2034 | R13: 2035 | S13: 2036 | T13: 2037 | U13: 2038 | V13: 2039 | W13: 2040 | X13: 2041 | Y13: 2042 | Z13: 2043 | AA13: 2044 | AB13: 2045 | AC13: 2046 | AD13: 2047 | AE13: 2048 | AF13: 2049 | AG13: 2050 | AH13: 2051 | AI13: 2052 | AJ13: 2053 | AK13: 2054 | AL13: 2055 | AM13: 2056 | AN13: 2057 | AO13: 2058
B14: Antal år før/efter år for beregning af nutidsværdi | E14: =E13-C9 -> 0 | F14: =E14+1 -> 1 | G14: 2 | H14: 3 | I14: 4 | J14: 5 | K14: 6 | L14: 7 | M14: 8 | N14: 9 | O14: 10 | P14: 11 | Q14: 12 | R14: 13 | S14: 14 | T14: 15 | U14: 16 | V14: 17 | W14: 18 | X14: 19 | Y14: 20 | Z14: 21 | AA14: 22 | AB14: 23 | AC14: 24 | AD14: 25 | AE14: 26 | AF14: 27 | AG14: 28 | AH14: 29 | AI14: 30 | AJ14: 31 | AK14: 32 | AL14: 33 | AM14: 34 | AN14: 35 | AO14: 36
B15: Rentesats | E15: =C5 -> 0.035 | F15: =E15 -> 0.035 | G15: 0.035 | H15: 0.035 | I15: 0.035 | J15: 0.035 | K15: 0.035 | L15: 0.035 | M15: 0.035 | N15: 0.035 | O15: 0.035 | P15: 0.035 | Q15: 0.035 | R15: 0.035 | S15: 0.035 | T15: 0.035 | U15: 0.035 | V15: 0.035 | W15: 0.035 | X15: 0.035 | Y15: 0.035 | Z15: 0.035 | AA15: 0.035 | AB15: 0.035 | AC15: 0.035 | AD15: 0.035 | AE15: 0.035 | AF15: 0.035 | AG15: 0.035 | AH15: 0.035 | AI15: 0.035 | AJ15: 0.035 | AK15: 0.035 | AL15: 0.035 | AM15: 0.035 | AN15: 0.035 | AO15: 0.035
B16: Diskonteringsfaktor | E16: =1/(1+E15)^E14 -> 1 | F16: 0.9661835749 | G16: 0.9335107004 | H16: 0.9019427057 | I16: 0.8714422277 | J16: 0.8419731669 | K16: 0.8135006443 | L16: 0.7859909607 | M16: 0.7594115562 | N16: 0.7337309722 | O16: 0.7089188137 | P16: 0.6849457137 | Q16: 0.6617832983 | R16: 0.6394041529 | S16: 0.6177817903 | T16: 0.5968906186 | U16: 0.5767059117 | V16: 0.5572037794 | W16: 0.5383611396 | X16: 0.5201556904 | Y16: 0.5025658844 | Z16: 0.4855709028 | AA16: 0.4691506308 | AB16: 0.4532856336 | AC16: 0.4379571339 | AD16: 0.4231469893 | AE16: 0.4088376708 | AF16: 0.3950122423 | AG16: 0.3816543404 | AH16: 0.368748155 | AI16: 0.3562784106 | AJ16: 0.3442303484 | AK16: 0.3325897086 | AL16: 0.3213427136 | AM16: 0.3104760518 | AN16: 0.2999768617 | AO16: 0.2898327166
B17: Diskonteringsfaktor, midtperiode | E17: =1/(1+E15)^(0.5+E14) -> 0.9829463744 | F17: 0.9497066419 | G17: 0.9175909584 | H17: 0.8865613124 | I17: 0.8565809782 | J17: 0.8276144717 | K17: 0.7996275089 | L17: 0.7725869651 | M17: 0.7464608358 | N17: 0.7212181989 | O17: 0.6968291777 | P17: 0.6732649059 | Q17: 0.6504974937 | R17: 0.6284999939 | S17: 0.6072463709 | T17: 0.5867114695 | U17: 0.566870985 | V17: 0.5477014348 | W17: 0.5291801302 | X17: 0.51128515 | Y17: 0.493995314 | Z17: 0.4772901584 | AA17: 0.4611499115 | AB17: 0.4455554701 | AC17: 0.4304883769 | AD17: 0.4159307989 | AE17: 0.4018655062 | AF17: 0.3882758514 | AG17: 0.3751457502 | AH17: 0.362459662 | AI17: 0.350202572 | AJ17: 0.3383599729 | AK17: 0.3269178482 | AL17: 0.3158626553 | AM17: 0.3051813095 | AN17: 0.2948611686 | AO17: 0.2848900179

Sheet Hjælpeark
B1: Hjælpeark
B3: Dette er et hjælpeark til beregning af det forventede budgetøkonomiske regnskab, pba. af de brugerspecificerede værdier
B5: Budgetøkonomiske konsekvenser, kr. pr. gennemsnitlig deltager i en indsats
B10: Hjælpeberegning til deltager med forskellig karakteristika
B12: Stærk | C12: =Resultater!C9/(Dashboard!D13+Dashboard!D25+Dashboard!D31) -> 210846.4282
B13: Svag | C13: =Resultater!C9/(Dashboard!D13+Dashboard!D25+Dashboard!D32) -> 351410.7137
B14: Gennemsnit | C14: =(C12+C13)/2 -> 281128.5709
B20: Betalingsmodel
B24: Omkostninger pr. deltager for indsatsgennemførsel
C25: NPV | D25: 2022 | E25: 2023 | F25: 2024 | G25: 2025 | H25: 2026 | I25: 2027 | J25: 2028 | K25: 2029 | L25: 2030 | M25: 2031 | N25: 2032 | O25: 2033 | P25: 2034 | Q25: 2035 | R25: 2036 | S25: 2037 | T25: 2038 | U25: 2039 | V25: 2040 | W25: 2041
B26: Samlet omkostning | C26: =C28-C30-C31 -> -1324581.048 | D26: -99000 | E26: -77189.18919 | F26: -77189.18919 | G26: -80460.81081 | H26: -83241.68919 | I26: -85605.43581 | J26: -87614.62044 | K26: -89322.42737 | L26: -90774.06327 | M26: -92007.95378 | N26: -93056.76071 | O26: -93948.2466 | P26: -94706.00961 | Q26: -95350.10817 | R26: -95897.59195 | S26: -96362.95315 | T26: -96758.51018 | U26: -97094.73365 | V26: -97380.52361 | W26: -97623.44506
B27: Indtægt
B28: Skatteindtægter | C28: =SUMPRODUCT(D28:W28,Inputark!$E$16:$X$16) -> 124486.7991 | D28: =IF(D25<=slutår,$D$38,IF(D25-slutår<=Dashboard!$D$26,Dashboard!$D$25*Dashboard!$D$8*Dashboard!$D$9*Dashboard!$D$50+$E$38,(C28-C38)*(1-Dashboard!$D$27)+C38)) -> 6000 | E28: =IF(E25<=slutår,$D$38,IF(E25-slutår<=Dashboard!$D$26,Dashboard!$D$25*Dashboard!$D$8*Dashboard!$D$9*Dashboard!$D$50+$E$38,(D28-D38)*(1-Dashboard!$D$27)+D38)) -> 12000 | F28: =IF(F25<=slutår,$D$38,IF(F25-slutår<=Dashboard!$D$26,Dashboard!$D$25*Dashboard!$D$8*Dashboard!$D$9*Dashboard!$D$50+$E$38,(E28-E38)*(1-Dashboard!$D$27)+E38)) -> 12000 | G28: =IF(G25<=slutår,$D$38,IF(G25-slutår<=Dashboard!$D$26,Dashboard!$D$25*Dashboard!$D$8*Dashboard!$D$9*Dashboard!$D$50+$E$38,(F28-F38)*(1-Dashboard!$D$27)+F38)) -> 11100 | H28: =IF(H25<=slutår,$D$38,IF(H25-slutår<=Dashboard!$D$26,Dashboard!$D$25*Dashboard!$D$8*Dashboard!$D$9*Dashboard!$D$50+$E$38,(G28-G38)*(1-Dashboard!$D$27)+G38)) -> 10335 | I28: =IF(I25<=slutår,$D$38,IF(I25-slutår<=Dashboard!$D$26,Dashboard!$D$25*Dashboard!$D$8*Dashboard!$D$9*Dashboard!$D$50+$E$38,(H28-H38)*(1-Dashboard!$D$27)+H38)) -> 9684.75 | J28: =IF(J25<=slutår,$D$38,IF(J25-slutår<=Dashboard!$D$26,Dashboard!$D$25*Dashboard!$D$8*Dashboard!$D$9*Dashboard!$D$50+$E$38,(I28-I38)*(1-Dashboard!$D$27)+I38)) -> 9132.0375 | K28: =IF(K25<=slutår,$D$38,IF(K25-slutår<=Dashboard!$D$26,Dashboard!$D$25*Dashboard!$D$8*Dashboard!$D$9*Dashboard!$D$50+$E$38,(J28-J38)*(1-Dashboard!$D$27)+J38)) -> 8662.231875 | L28: =IF(L25<=slutår,$D$38,IF(L25-slutår<=Dashboard!$D$26,Dashboard!$D$25*Dashboard!$D$8*Dashboard!$D$9*Dashboard!$D$50+$E$38,(K28-K38)*(1-Dashboard!$D$27)+K38)) -> 8262.897094 | M28: =IF(M25<=slutår,$D$38,IF(M25-slutår<=Dashboard!$D$26,Dashboard!$D$25*Dashboard!$D$8*Dashboard!$D$9*Dashboard!$D$50+$E$38,(L28-L38)*(1-Dashboard!$D$27)+L38)) -> 7923.46253 | N28: =IF(N25<=slutår,$D$38,IF(N25-slutår<=Dashboard!$D$26,Dashboard!$D$25*Dashboard!$D$8*Dashboard!$D$9*Dashboard!$D$50+$E$38,(M28-M38)*(1-Dashboard!$D$27)+M38)) -> 7634.94315 | O28: =IF(O25<=slutår,$D$38,IF(O25-slutår<=Dashboard!$D$26,Dashboard!$D$25*Dashboard!$D$8*Dashboard!$D$9*Dashboard!$D$50+$E$38,(N28-N38)*(1-Dashboard!$D$27)+N38)) -> 7389.701678 | P28: =IF(P25<=slutår,$D$38,IF(P25-slutår<=Dashboard!$D$26,Dashboard!$D$25*Dashboard!$D$8*Dashboard!$D$9*Dashboard!$D$50+$E$38,(O28-O38)*(1-Dashboard!$D$27)+O38)) -> 7181.246426 | Q28: =IF(Q25<=slutår,$D$38,IF(Q25-slutår<=Dashboard!$D$26,Dashboard!$D$25*Dashboard!$D$8*Dashboard!$D$9*Dashboard!$D$50+$E$38,(P28-P38)*(1-Dashboard!$D$27)+P38)) -> 7004.059462 | R28: =IF(R25<=slutår,$D$38,IF(R25-slutår<=Dashboard!$D$26,Dashboard!$D$25*Dashboard!$D$8*Dashboard!$D$9*Dashboard!$D$50+$E$38,(Q28-Q38)*(1-Dashboard!$D$27)+Q38)) -> 6853.450543 | S28: =IF(S25<=slutår,$D$38,IF(S25-slutår<=Dashboard!$D$26,Dashboard!$D$25*Dashboard!$D$8*Dashboard!$D$9*Dashboard!$D$50+$E$38,(R28-R38)*(1-Dashboard!$D$27)+R38)) -> 6725.432961 | T28: =IF(T25<=slutår,$D$38,IF(T25-slutår<=Dashboard!$D$26,Dashboard!$D$25*Dashboard!$D$8*Dashboard!$D$9*Dashboard!$D$50+$E$38,(S28-S38)*(1-Dashboard!$D$27)+S38)) -> 6616.618017 | U28: =IF(U25<=slutår,$D$38,IF(U25-slutår<=Dashboard!$D$26,Dashboard!$D$25*Dashboard!$D$8*Dashboard!$D$9*Dashboard!$D$50+$E$38,(T28-T38)*(1-Dashboard!$D$27)+T38)) -> 6524.125315 | V28: =IF(V25<=slutår,$D$38,IF(V25-slutår<=Dashboard!$D$26,Dashboard!$D$25*Dashboard!$D$8*Dashboard!$D$9*Dashboard!$D$50+$E$38,(U28-U38)*(1-Dashboard!$D$27)+U38)) -> 6445.506517 | W28: =IF(W25<=slutår,$D$38,IF(W25-slutår<=Dashboard!$D$26,Dashboard!$D$25*Dashboard!$D$8*Dashboard!$D$9*Dashboard!$D$50+$E$38,(V28-V38)*(1-Dashboard!$D$27)+V38)) -> 6378.68054
B29: Udgifter
B30: Overførselsindkomst | C30: =SUMPRODUCT(D30:W30,Inputark!$E$16:$X$16) -> 1111511.724 | D30: =IF(D25<=slutår,$D$40,IF(D25-slutår<=Dashboard!$D$26,Dashboard!$D$11*(1-Dashboard!$D$53)-(Dashboard!$D$25)*Dashboard!$D$11*(37-Dashboard!$D$10)/37*(1-Dashboard!$D$53),(C30-C40)*(1-Dashboard!$D$27)+C40)) -> 80000 | E30: =IF(E25<=slutår,$D$40,IF(E25-slutår<=Dashboard!$D$26,Dashboard!$D$11*(1-Dashboard!$D$53)-(Dashboard!$D$25)*Dashboard!$D$11*(37-Dashboard!$D$10)/37*(1-Dashboard!$D$53),(D30-D40)*(1-Dashboard!$D$27)+D40)) -> 69189.18919 | F30: =IF(F25<=slutår,$D$40,IF(F25-slutår<=Dashboard!$D$26,Dashboard!$D$11*(1-Dashboard!$D$53)-(Dashboard!$D$25)*Dashboard!$D$11*(37-Dashboard!$D$10)/37*(1-Dashboard!$D$53),(E30-E40)*(1-Dashboard!$D$27)+E40)) -> 69189.18919 | G30: =IF(G25<=slutår,$D$40,IF(G25-slutår<=Dashboard!$D$26,Dashboard!$D$11*(1-Dashboard!$D$53)-(Dashboard!$D$25)*Dashboard!$D$11*(37-Dashboard!$D$10)/37*(1-Dashboard!$D$53),(F30-F40)*(1-Dashboard!$D$27)+F40)) -> 70810.81081 | H30: =IF(H25<=slutår,$D$40,IF(H25-slutår<=Dashboard!$D$26,Dashboard!$D$11*(1-Dashboard!$D$53)-(Dashboard!$D$25)*Dashboard!$D$11*(37-Dashboard!$D$10)/37*(1-Dashboard!$D$53),(G30-G40)*(1-Dashboard!$D$27)+G40)) -> 72189.18919 | I30: =IF(I25<=slutår,$D$40,IF(I25-slutår<=Dashboard!$D$26,Dashboard!$D$11*(1-Dashboard!$D$53)-(Dashboard!$D$25)*Dashboard!$D$11*(37-Dashboard!$D$10)/37*(1-Dashboard!$D$53),(H30-H40)*(1-Dashboard!$D$27)+H40)) -> 73360.81081 | J30: =IF(J25<=slutår,$D$40,IF(J25-slutår<=Dashboard!$D$26,Dashboard!$D$11*(1-Dashboard!$D$53)-(Dashboard!$D$25)*Dashboard!$D$11*(37-Dashboard!$D$10)/37*(1-Dashboard!$D$53),(I30-I40)*(1-Dashboard!$D$27)+I40)) -> 74356.68919 | K30: =IF(K25<=slutår,$D$40,IF(K25-slutår<=Dashboard!$D$26,Dashboard!$D$11*(1-Dashboard!$D$53)-(Dashboard!$D$25)*Dashboard!$D$11*(37-Dashboard!$D$10)/37*(1-Dashboard!$D$53),(J30-J40)*(1-Dashboard!$D$27)+J40)) -> 75203.18581 | L30: =IF(L25<=slutår,$D$40,IF(L25-slutår<=Dashboard!$D$26,Dashboard!$D$11*(1-Dashboard!$D$53)-(Dashboard!$D$25)*Dashboard!$D$11*(37-Dashboard!$D$10)/37*(1-Dashboard!$D$53),(K30-K40)*(1-Dashboard!$D$27)+K40)) -> 75922.70794 | M30: =IF(M25<=slutår,$D$40,IF(M25-slutår<=Dashboard!$D$26,Dashboard!$D$11*(1-Dashboard!$D$53)-(Dashboard!$D$25)*Dashboard!$D$11*(37-Dashboard!$D$10)/37*(1-Dashboard!$D$53),(L30-L40)*(1-Dashboard!$D$27)+L40)) -> 76534.30175 | N30: =IF(N25<=slutår,$D$40,IF(N25-slutår<=Dashboard!$D$26,Dashboard!$D$11*(1-Dashboard!$D$53)-(Dashboard!$D$25)*Dashboard!$D$11*(37-Dashboard!$D$10)/37*(1-Dashboard!$D$53),(M30-M40)*(1-Dashboard!$D$27)+M40)) -> 77054.15649 | O30: =IF(O25<=slutår,$D$40,IF(O25-slutår<=Dashboard!$D$26,Dashboard!$D$11*(1-Dashboard!$D$53)-(Dashboard!$D$25)*Dashboard!$D$11*(37-Dashboard!$D$10)/37*(1-Dashboard!$D$53),(N30-N40)*(1-Dashboard!$D$27)+N40)) -> 77496.03301 | P30: =IF(P25<=slutår,$D$40,IF(P25-slutår<=Dashboard!$D$26,Dashboard!$D$11*(1-Dashboard!$D$53)-(Dashboard!$D$25)*Dashboard!$D$11*(37-Dashboard!$D$10)/37*(1-Dashboard!$D$53),(O30-O40)*(1-Dashboard!$D$27)+O40)) -> 77871.62806 | Q30: =IF(Q25<=slutår,$D$40,IF(Q25-slutår<=Dashboard!$D$26,Dashboard!$D$11*(1-Dashboard!$D$53)-(Dashboard!$D$25)*Dashboard!$D$11*(37-Dashboard!$D$10)/37*(1-Dashboard!$D$53),(P30-P40)*(1-Dashboard!$D$27)+P40)) -> 78190.88385 | R30: =IF(R25<=slutår,$D$40,IF(R25-slutår<=Dashboard!$D$26,Dashboard!$D$11*(1-Dashboard!$D$53)-(Dashboard!$D$25)*Dashboard!$D$11*(37-Dashboard!$D$10)/37*(1-Dashboard!$D$53),(Q30-Q40)*(1-Dashboard!$D$27)+Q40)) -> 78462.25127 | S30: =IF(S25<=slutår,$D$40,IF(S25-slutår<=Dashboard!$D$26,Dashboard!$D$11*(1-Dashboard!$D$53)-(Dashboard!$D$25)*Dashboard!$D$11*(37-Dashboard!$D$10)/37*(1-Dashboard!$D$53),(R30-R40)*(1-Dashboard!$D$27)+R40)) -> 78692.91358 | T30: =IF(T25<=slutår,$D$40,IF(T25-slutår<=Dashboard!$D$26,Dashboard!$D$11*(1-Dashboard!$D$53)-(Dashboard!$D$25)*Dashboard!$D$11*(37-Dashboard!$D$10)/37*(1-Dashboard!$D$53),(S30-S40)*(1-Dashboard!$D$27)+S40)) -> 78888.97655 | U30: =IF(U25<=slutår,$D$40,IF(U25-slutår<=Dashboard!$D$26,Dashboard!$D$11*(1-Dashboard!$D$53)-(Dashboard!$D$25)*Dashboard!$D$11*(37-Dashboard!$D$10)/37*(1-Dashboard!$D$53),(T30-T40)*(1-Dashboard!$D$27)+T40)) -> 79055.63006 | V30: =IF(V25<=slutår,$D$40,IF(V25-slutår<=Dashboard!$D$26,Dashboard!$D$11*(1-Dashboard!$D$53)-(Dashboard!$D$25)*Dashboard!$D$11*(37-Dashboard!$D$10)/37*(1-Dashboard!$D$53),(U30-U40)*(1-Dashboard!$D$27)+U40)) -> 79197.28555 | W30: =IF(W25<=slutår,$D$40,IF(W25-slutår<=Dashboard!$D$26,Dashboard!$D$11*(1-Dashboard!$D$53)-(Dashboard!$D$25)*Dashboard!$D$11*(37-Dashboard!$D$10)/37*(1-Dashboard!$D$53),(V30-V40)*(1-Dashboard!$D$27)+V40)) -> 79317.69272
B31: Beskæftigelsesindsats | C31: =SUMPRODUCT(D31:W31,Inputark!$E$16:$X$16) -> 337556.1233 | D31: =IF(D25<=slutår,Dashboard!$D$12*(1-Dashboard!$D$28),IF(D25-slutår<=Dashboard!$D$26,(1-Dashboard!$D$25)*Dashboard!$D$12,(C31-C41)*(1-Dashboard!$D$27)+C41)) -> 25000 | E31: =IF(E25<=slutår,Dashboard!$D$12*(1-Dashboard!$D$28),IF(E25-slutår<=Dashboard!$D$26,(1-Dashboard!$D$25)*Dashboard!$D$12,(D31-D41)*(1-Dashboard!$D$27)+D41)) -> 20000 | F31: =IF(F25<=slutår,Dashboard!$D$12*(1-Dashboard!$D$28),IF(F25-slutår<=Dashboard!$D$26,(1-Dashboard!$D$25)*Dashboard!$D$12,(E31-E41)*(1-Dashboard!$D$27)+E41)) -> 20000 | G31: =IF(G25<=slutår,Dashboard!$D$12*(1-Dashboard!$D$28),IF(G25-slutår<=Dashboard!$D$26,(1-Dashboard!$D$25)*Dashboard!$D$12,(F31-F41)*(1-Dashboard!$D$27)+F41)) -> 20750 | H31: =IF(H25<=slutår,Dashboard!$D$12*(1-Dashboard!$D$28),IF(H25-slutår<=Dashboard!$D$26,(1-Dashboard!$D$25)*Dashboard!$D$12,(G31-G41)*(1-Dashboard!$D$27)+G41)) -> 21387.5 | I31: =IF(I25<=slutår,Dashboard!$D$12*(1-Dashboard!$D$28),IF(I25-slutår<=Dashboard!$D$26,(1-Dashboard!$D$25)*Dashboard!$D$12,(H31-H41)*(1-Dashboard!$D$27)+H41)) -> 21929.375 | J31: =IF(J25<=slutår,Dashboard!$D$12*(1-Dashboard!$D$28),IF(J25-slutår<=Dashboard!$D$26,(1-Dashboard!$D$25)*Dashboard!$D$12,(I31-I41)*(1-Dashboard!$D$27)+I41)) -> 22389.96875 | K31: =IF(K25<=slutår,Dashboard!$D$12*(1-Dashboard!$D$28),IF(K25-slutår<=Dashboard!$D$26,(1-Dashboard!$D$25)*Dashboard!$D$12,(J31-J41)*(1-Dashboard!$D$27)+J41)) -> 22781.47344 | L31: =IF(L25<=slutår,Dashboard!$D$12*(1-Dashboard!$D$28),IF(L25-slutår<=Dashboard!$D$26,(1-Dashboard!$D$25)*Dashboard!$D$12,(K31-K41)*(1-Dashboard!$D$27)+K41)) -> 23114.25242 | M31: =IF(M25<=slutår,Dashboard!$D$12*(1-Dashboard!$D$28),IF(M25-slutår<=Dashboard!$D$26,(1-Dashboard!$D$25)*Dashboard!$D$12,(L31-L41)*(1-Dashboard!$D$27)+L41)) -> 23397.11456 | N31: =IF(N25<=slutår,Dashboard!$D$12*(1-Dashboard!$D$28),IF(N25-slutår<=Dashboard!$D$26,(1-Dashboard!$D$25)*Dashboard!$D$12,(M31-M41)*(1-Dashboard!$D$27)+M41)) -> 23637.54737 | O31: =IF(O25<=slutår,Dashboard!$D$12*(1-Dashboard!$D$28),IF(O25-slutår<=Dashboard!$D$26,(1-Dashboard!$D$25)*Dashboard!$D$12,(N31-N41)*(1-Dashboard!$D$27)+N41)) -> 23841.91527 | P31: =IF(P25<=slutår,Dashboard!$D$12*(1-Dashboard!$D$28),IF(P25-slutår<=Dashboard!$D$26,(1-Dashboard!$D$25)*Dashboard!$D$12,(O31-O41)*(1-Dashboard!$D$27)+O41)) -> 24015.62798 | Q31: =IF(Q25<=slutår,Dashboard!$D$12*(1-Dashboard!$D$28),IF(Q25-slutår<=Dashboard!$D$26,(1-Dashboard!$D$25)*Dashboard!$D$12,(P31-P41)*(1-Dashboard!$D$27)+P41)) -> 24163.28378 | R31: =IF(R25<=slutår,Dashboard!$D$12*(1-Dashboard!$D$28),IF(R25-slutår<=Dashboard!$D$26,(1-Dashboard!$D$25)*Dashboard!$D$12,(Q31-Q41)*(1-Dashboard!$D$27)+Q41)) -> 24288.79121 | S31: =IF(S25<=slutår,Dashboard!$D$12*(1-Dashboard!$D$28),IF(S25-slutår<=Dashboard!$D$26,(1-Dashboard!$D$25)*Dashboard!$D$12,(R31-R41)*(1-Dashboard!$D$27)+R41)) -> 24395.47253 | T31: =IF(T25<=slutår,Dashboard!$D$12*(1-Dashboard!$D$28),IF(T25-slutår<=Dashboard!$D$26,(1-Dashboard!$D$25)*Dashboard!$D$12,(S31-S41)*(1-Dashboard!$D$27)+S41)) -> 24486.15165 | U31: =IF(U25<=slutår,Dashboard!$D$12*(1-Dashboard!$D$28),IF(U25-slutår<=Dashboard!$D$26,(1-Dashboard!$D$25)*Dashboard!$D$12,(T31-T41)*(1-Dashboard!$D$27)+T41)) -> 24563.2289 | V31: =IF(V25<=slutår,Dashboard!$D$12*(1-Dashboard!$D$28),IF(V25-slutår<=Dashboard!$D$26,(1-Dashboard!$D$25)*Dashboard!$D$12,(U31-U41)*(1-Dashboard!$D$27)+U41)) -> 24628.74457 | W31: =IF(W25<=slutår,Dashboard!$D$12*(1-Dashboard!$D$28),IF(W25-slutår<=Dashboard!$D$26,(1-Dashboard!$D$25)*Dashboard!$D$12,(V31-V41)*(1-Dashboard!$D$27)+V41)) -> 24684.43288
B32: Diskonteret samlet omkostning | D32: =D26*Inputark!F16 -> -95652.17391 | E32: =E26*Inputark!G16 -> -72056.93406 | F32: =F26*Inputark!H16 -> -69620.22615 | G32: =G26*Inputark!I16 -> -70116.94822 | H32: =H26*Inputark!J16 -> -70087.26866 | I32: =I26*Inputark!K16 -> -69640.07719 | J32: =J26*Inputark!L16 -> -68864.29969 | K32: =K26*Inputark!M16 -> -67832.48358 | L32: =L26*Inputark!N16 -> -66603.74169 | M32: =M26*Inputark!O16 -> -65226.16944 | N32: =N26*Inputark!P16 -> -63738.82938 | O32: =O26*Inputark!Q16 -> -62173.38051 | P32: =P26*Inputark!R16 -> -60555.41585 | Q32: =Q26*Inputark!S16 -> -58905.56053 | R32: =R26*Inputark!T16 -> -57240.37298 | S32: =S26*Inputark!U16 -> -55573.08475 | T32: =T26*Inputark!V16 -> -53914.20757 | U32: =U26*Inputark!W16 -> -52272.03145 | V32: =V26*Inputark!X16 -> -50653.03349 | W32: =W26*Inputark!Y16 -> -49062.21301
B34: Omkostninger pr. deltager i baseline
C35: NPV | D35: 2022 | E35: 2023 | F35: 2024 | G35: 2025 | H35: 2026 | I35: 2027 | J35: 2028 | K35: 2029 | L35: 2030 | M35: 2031 | N35: 2032 | O35: 2033 | P35: 2034 | Q35: 2035 | R35: 2036 | S35: 2037 | T35: 2038 | U35: 2039 | V35: 2040 | W35: 2041
B36: Samlet omkostning | C36: =C38-SUM(C40:C41) -> -1456273.904 | D36: -99000 | E36: -99000 | F36: -99000 | G36: -99000 | H36: -99000 | I36: -99000 | J36: -99000 | K36: -99000 | L36: -99000 | M36: -99000 | N36: -99000 | O36: -99000 | P36: -99000 | Q36: -99000 | R36: -99000 | S36: -99000 | T36: -99000 | U36: -99000 | V36: -99000 | W36: -99000
B37: Indtægt
B38: Skatteindtægter | C38: =SUMPRODUCT(D38:W38,Inputark!$E$16:$X$16) -> 88259.02451 | D38: =Dashboard!$D$13*Dashboard!$D$8*Dashboard!$D$9*Dashboard!$D$50 -> 6000 | E38: =Dashboard!$D$13*Dashboard!$D$8*Dashboard!$D$9*Dashboard!$D$50 -> 6000 | F38: =Dashboard!$D$13*Dashboard!$D$8*Dashboard!$D$9*Dashboard!$D$50 -> 6000 | G38: =Dashboard!$D$13*Dashboard!$D$8*Dashboard!$D$9*Dashboard!$D$50 -> 6000 | H38: =Dashboard!$D$13*Dashboard!$D$8*Dashboard!$D$9*Dashboard!$D$50 -> 6000 | I38: =Dashboard!$D$13*Dashboard!$D$8*Dashboard!$D$9*Dashboard!$D$50 -> 6000 | J38: =Dashboard!$D$13*Dashboard!$D$8*Dashboard!$D$9*Dashboard!$D$50 -> 6000 | K38: =Dashboard!$D$13*Dashboard!$D$8*Dashboard!$D$9*Dashboard!$D$50 -> 6000 | L38: =Dashboard!$D$13*Dashboard!$D$8*Dashboard!$D$9*Dashboard!$D$50 -> 6000 | M38: =Dashboard!$D$13*Dashboard!$D$8*Dashboard!$D$9*Dashboard!$D$50 -> 6000 | N38: =Dashboard!$D$13*Dashboard!$D$8*Dashboard!$D$9*Dashboard!$D$50 -> 6000 | O38: =Dashboard!$D$13*Dashboard!$D$8*Dashboard!$D$9*Dashboard!$D$50 -> 6000 | P38: =Dashboard!$D$13*Dashboard!$D$8*Dashboard!$D$9*Dashboard!$D$50 -> 6000 | Q38: =Dashboard!$D$13*Dashboard!$D$8*Dashboard!$D$9*Dashboard!$D$50 -> 6000 | R38: =Dashboard!$D$13*Dashboard!$D$8*Dashboard!$D$9*Dashboard!$D$50 -> 6000 | S38: =Dashboard!$D$13*Dashboard!$D$8*Dashboard!$D$9*Dashboard!$D$50 -> 6000 | T38: =Dashboard!$D$13*Dashboard!$D$8*Dashboard!$D$9*Dashboard!$D$50 -> 6000 | U38: =Dashboard!$D$13*Dashboard!$D$8*Dashboard!$D$9*Dashboard!$D$50 -> 6000 | V38: =Dashboard!$D$13*Dashboard!$D$8*Dashboard!$D$9*Dashboard!$D$50 -> 6000 | W38: =Dashboard!$D$13*Dashboard!$D$8*Dashboard!$D$9*Dashboard!$D$50 -> 6000
B39: Udgifter
B40: Overførselsindkomst | C40: =SUMPRODUCT(D40:W40,Inputark!$E$16:$X$16) -> 1176786.993 | D40: =Dashboard!$D$11*(1-Dashboard!$D$53) -> 80000 | E40: =Dashboard!$D$11*(1-Dashboard!$D$53) -> 80000 | F40: =Dashboard!$D$11*(1-Dashboard!$D$53) -> 80000 | G40: =Dashboard!$D$11*(1-Dashboard!$D$53) -> 80000 | H40: =Dashboard!$D$11*(1-Dashboard!$D$53) -> 80000 | I40: =Dashboard!$D$11*(1-Dashboard!$D$53) -> 80000 | J40: =Dashboard!$D$11*(1-Dashboard!$D$53) -> 80000 | K40: =Dashboard!$D$11*(1-Dashboard!$D$53) -> 80000 | L40: =Dashboard!$D$11*(1-Dashboard!$D$53) -> 80000 | M40: =Dashboard!$D$11*(1-Dashboard!$D$53) -> 80000 | N40: =Dashboard!$D$11*(1-Dashboard!$D$53) -> 80000 | O40: =Dashboard!$D$11*(1-Dashboard!$D$53) -> 80000 | P40: =Dashboard!$D$11*(1-Dashboard!$D$53) -> 80000 | Q40: =Dashboard!$D$11*(1-Dashboard!$D$53) -> 80000 | R40: =Dashboard!$D$11*(1-Dashboard!$D$53) -> 80000 | S40: =Dashboard!$D$11*(1-Dashboard!$D$53) -> 80000 | T40: =Dashboard!$D$11*(1-Dashboard!$D$53) -> 80000 | U40: =Dashboard!$D$11*(1-Dashboard!$D$53) -> 80000 | V40: =Dashboard!$D$11*(1-Dashboard!$D$53) -> 80000 | W40: =Dashboard!$D$11*(1-Dashboard!$D$53) -> 80000
B41: Beskæftigelsesindsats | C41: =SUMPRODUCT(D41:W41,Inputark!$E$16:$X$16) -> 367745.9354 | D41: =Dashboard!$D$12 -> 25000 | E41: =Dashboard!$D$12 -> 25000 | F41: =Dashboard!$D$12 -> 25000 | G41: =Dashboard!$D$12 -> 25000 | H41: =Dashboard!$D$12 -> 25000 | I41: =Dashboard!$D$12 -> 25000 | J41: =Dashboard!$D$12 -> 25000 | K41: =Dashboard!$D$12 -> 25000 | L41: =Dashboard!$D$12 -> 25000 | M41: =Dashboard!$D$12 -> 25000 | N41: =Dashboard!$D$12 -> 25000 | O41: =Dashboard!$D$12 -> 25000 | P41: =Dashboard!$D$12 -> 25000 | Q41: =Dashboard!$D$12 -> 25000 | R41: =Dashboard!$D$12 -> 25000 | S41: =Dashboard!$D$12 -> 25000 | T41: =Dashboard!$D$12 -> 25000 | U41: =Dashboard!$D$12 -> 25000 | V41: =Dashboard!$D$12 -> 25000 | W41: =Dashboard!$D$12 -> 25000
B42: Diskonteret samlet omkostning | D42: =D36*Inputark!F16 -> -95652.17391 | E42: =E36*Inputark!G16 -> -92417.55934 | F42: =F36*Inputark!H16 -> -89292.32786 | G42: =G36*Inputark!I16 -> -86272.78054 | H42: =H36*Inputark!J16 -> -83355.34352 | I42: =I36*Inputark!K16 -> -80536.56379 | J42: =J36*Inputark!L16 -> -77813.10511 | K42: =K36*Inputark!M16 -> -75181.74407 | L42: =L36*Inputark!N16 -> -72639.36625 | M42: =M36*Inputark!O16 -> -70182.96256 | N42: =N36*Inputark!P16 -> -67809.62566 | O42: =O36*Inputark!Q16 -> -65516.54653 | P42: =P36*Inputark!R16 -> -63301.01114 | Q42: =Q36*Inputark!S16 -> -61160.39724 | R42: =R36*Inputark!T16 -> -59092.17124 | S42: =S36*Inputark!U16 -> -57093.88526 | T42: =T36*Inputark!V16 -> -55163.17416 | U42: =U36*Inputark!W16 -> -53297.75282 | V42: =V36*Inputark!X16 -> -51495.41335 | W42: =W36*Inputark!Y16 -> -49754.02256
B44: Forskel ift. baseline
C45: NPV | D45: 2022 | E45: 2023 | F45: 2024 | G45: 2025 | H45: 2026 | I45: 2027 | J45: 2028 | K45: 2029 | L45: 2030 | M45: 2031 | N45: 2032 | O45: 2033 | P45: 2034 | Q45: 2035 | R45: 2036 | S45: 2037 | T45: 2038 | U45: 2039 | V45: 2040 | W45: 2041
B46: Samlet besparelse ift. baseline | C46: =SUM(C47:C49) -> 131692.8564 | D46: 0 | E46: 21810.81081 | F46: 21810.81081 | G46: 18539.18919 | H46: 15758.31081 | I46: 13394.56419 | J46: 11385.37956 | K46: 9677.572627 | L46: 8225.936733 | M46: 6992.046223 | N46: 5943.239289 | O46: 5051.753396 | P46: 4293.990387 | Q46: 3649.891829 | R46: 3102.408054 | S46: 2637.046846 | T46: 2241.489819 | U46: 1905.266346 | V46: 1619.476394 | W46: 1376.554935
B47: Skatteindtægter | C47: =SUMPRODUCT(D47:W47,Inputark!$E$16:$X$16) -> 36227.77462 | D47: =D28-D38 -> 0 | E47: 6000 | F47: 6000 | G47: 5100 | H47: 4335 | I47: 3684.75 | J47: 3132.0375 | K47: 2662.231875 | L47: 2262.897094 | M47: 1923.46253 | N47: 1634.94315 | O47: 1389.701678 | P47: 1181.246426 | Q47: 1004.059462 | R47: 853.4505428 | S47: 725.4329614 | T47: 616.6180172 | U47: 524.1253146 | V47: 445.5065174 | W47: 378.6805398
B48: Overførselsindkomst | C48: =SUMPRODUCT(D48:W48,Inputark!$E$16:$X$16) -> 65275.26959 | D48: =D40-D30 -> 0 | E48: 10810.81081 | F48: 10810.81081 | G48: 9189.189189 | H48: 7810.810811 | I48: 6639.189189 | J48: 5643.310811 | K48: 4796.814189 | L48: 4077.292061 | M48: 3465.698252 | N48: 2945.843514 | O48: 2503.966987 | P48: 2128.371939 | Q48: 1809.116148 | R48: 1537.748726 | S48: 1307.086417 | T48: 1111.023454 | U48: 944.3699362 | V48: 802.7144458 | W48: 682.3072789
B49: Beskæftigelsesindsats | C49: =SUMPRODUCT(D49:W49,Inputark!$E$16:$X$16) -> 30189.81219 | D49: =D41-D31 -> 0 | E49: 5000 | F49: 5000 | G49: 4250 | H49: 3612.5 | I49: 3070.625 | J49: 2610.03125 | K49: 2218.526562 | L49: 1885.747578 | M49: 1602.885441 | N49: 1362.452625 | O49: 1158.084731 | P49: 984.3720217 | Q49: 836.7162184 | R49: 711.2087857 | S49: 604.5274678 | T49: 513.8483477 | U49: 436.7710955 | V49: 371.2554312 | W49: 315.5671165
B50: Investering, leverandør | C50: =SUMPRODUCT(D50:W50,Inputark!$E$16:$X$16) -> 100000 | D50: =IF(D45<=slutår,Dashboard!$D$37/levetid,0) -> 100000 | E50: =IF(E45<=slutår,Dashboard!$D$37/levetid,0) -> 0 | F50: =IF(F45<=slutår,Dashboard!$D$37/levetid,0) -> 0 | G50: =IF(G45<=slutår,Dashboard!$D$37/levetid,0) -> 0 | H50: =IF(H45<=slutår,Dashboard!$D$37/levetid,0) -> 0 | I50: =IF(I45<=slutår,Dashboard!$D$37/levetid,0) -> 0 | J50: =IF(J45<=slutår,Dashboard!$D$37/levetid,0) -> 0 | K50: =IF(K45<=slutår,Dashboard!$D$37/levetid,0) -> 0 | L50: =IF(L45<=slutår,Dashboard!$D$37/levetid,0) -> 0 | M50: =IF(M45<=slutår,Dashboard!$D$37/levetid,0) -> 0 | N50: =IF(N45<=slutår,Dashboard!$D$37/levetid,0) -> 0 | O50: =IF(O45<=slutår,Dashboard!$D$37/levetid,0) -> 0 | P50: =IF(P45<=slutår,Dashboard!$D$37/levetid,0) -> 0 | Q50: =IF(Q45<=slutår,Dashboard!$D$37/levetid,0) -> 0 | R50: =IF(R45<=slutår,Dashboard!$D$37/levetid,0) -> 0 | S50: =IF(S45<=slutår,Dashboard!$D$37/levetid,0) -> 0 | T50: =IF(T45<=slutår,Dashboard!$D$37/levetid,0) -> 0 | U50: =IF(U45<=slutår,Dashboard!$D$37/levetid,0) -> 0 | V50: =IF(V45<=slutår,Dashboard!$D$37/levetid,0) -> 0 | W50: =IF(W45<=slutår,Dashboard!$D$37/levetid,0) -> 0
B51: Investering, myndighed | C51: =SUMPRODUCT(D51:W51,Inputark!$E$16:$X$16) -> 10000 | D51: =IF(D45<=slutår,Dashboard!$D$38/levetid,0) -> 10000 | E51: =IF(E45<=slutår,Dashboard!$D$38/levetid,0) -> 0 | F51: =IF(F45<=slutår,Dashboard!$D$38/levetid,0) -> 0 | G51: =IF(G45<=slutår,Dashboard!$D$38/levetid,0) -> 0 | H51: =IF(H45<=slutår,Dashboard!$D$38/levetid,0) -> 0 | I51: =IF(I45<=slutår,Dashboard!$D$38/levetid,0) -> 0 | J51: =IF(J45<=slutår,Dashboard!$D$38/levetid,0) -> 0 | K51: =IF(K45<=slutår,Dashboard!$D$38/levetid,0) -> 0 | L51: =IF(L45<=slutår,Dashboard!$D$38/levetid,0) -> 0 | M51: =IF(M45<=slutår,Dashboard!$D$38/levetid,0) -> 0 | N51: =IF(N45<=slutår,Dashboard!$D$38/levetid,0) -> 0 | O51: =IF(O45<=slutår,Dashboard!$D$38/levetid,0) -> 0 | P51: =IF(P45<=slutår,Dashboard!$D$38/levetid,0) -> 0 | Q51: =IF(Q45<=slutår,Dashboard!$D$38/levetid,0) -> 0 | R51: =IF(R45<=slutår,Dashboard!$D$38/levetid,0) -> 0 | S51: =IF(S45<=slutår,Dashboard!$D$38/levetid,0) -> 0 | T51: =IF(T45<=slutår,Dashboard!$D$38/levetid,0) -> 0 | U51: =IF(U45<=slutår,Dashboard!$D$38/levetid,0) -> 0 | V51: =IF(V45<=slutår,Dashboard!$D$38/levetid,0) -> 0 | W51: =IF(W45<=slutår,Dashboard!$D$38/levetid,0) -> 0
B53: Indtægter fordelt på aktører
C54: NPV | D54: 2022 | E54: 2023 | F54: 2024 | G54: 2025 | H54: 2026 | I54: 2027 | J54: 2028 | K54: 2029 | L54: 2030 | M54: 2031 | N54: 2032 | O54: 2033 | P54: 2034 | Q54: 2035 | R54: 2036 | S54: 2037 | T54: 2038 | U54: 2039 | V54: 2040 | W54: 2041
B55: Leverandør | C55: =SUMPRODUCT($D$55:$W$55,Inputark!$E$16:$X$16) -> -100000 | D55: =-D50 -> -100000 | E55: 0 | F55: 0 | G55: 0 | H55: 0 | I55: 0 | J55: 0 | K55: 0 | L55: 0 | M55: 0 | N55: 0 | O55: 0 | P55: 0 | Q55: 0 | R55: 0 | S55: 0 | T55: 0 | U55: 0 | V55: 0 | W55: 0
B56: Myndighed | C56: =SUMPRODUCT(D56:W56,Inputark!$E$16:$X$16) -> 121692.8564 | D56: =-D51+D49+D48+D47 -> -10000 | E56: 21810.81081 | F56: 21810.81081 | G56: 18539.18919 | H56: 15758.31081 | I56: 13394.56419 | J56: 11385.37956 | K56: 9677.572627 | L56: 8225.936733 | M56: 6992.046223 | N56: 5943.239289 | O56: 5051.753396 | P56: 4293.990387 | Q56: 3649.891829 | R56: 3102.408054 | S56: 2637.046846 | T56: 2241.489819 | U56: 1905.266346 | V56: 1619.476394 | W56: 1376.554935
B58: Fordelt på aktører udspecificeret
C59: NPV | D59: 2022 | E59: 2023 | F59: 2024 | G59: 2025 | H59: 2026 | I59: 2027 | J59: 2028 | K59: 2029 | L59: 2030 | M59: 2031 | N59: 2032 | O59: 2033 | P59: 2034 | Q59: 2035 | R59: 2036 | S59: 2037 | T59: 2038 | U59: 2039 | V59: 2040 | W59: 2041
B60: Baseline
B61: Leverandør | D61: 0 | E61: 0 | F61: 0 | G61: 0 | H61: 0 | I61: 0 | J61: 0 | K61: 0 | L61: 0 | M61: 0 | N61: 0 | O61: 0 | P61: 0 | Q61: 0 | R61: 0 | S61: 0 | T61: 0 | U61: 0 | V61: 0 | W61: 0
B62: Myndighed | C62: =SUMPRODUCT(D62:W62,Inputark!$E$16:$X$16) -> -1456273.904 | D62: =D36 -> -99000 | E62: -99000 | F62: -99000 | G62: -99000 | H62: -99000 | I62: -99000 | J62: -99000 | K62: -99000 | L62: -99000 | M62: -99000 | N62: -99000 | O62: -99000 | P62: -99000 | Q62: -99000 | R62: -99000 | S62: -99000 | T62: -99000 | U62: -99000 | V62: -99000 | W62: -99000
B63: Indsats
B64: Leverandør | C64: =SUMPRODUCT(D64:W64,Inputark!$E$16:$X$16) -> -100000 | D64: =-D50 -> -100000 | E64: 0 | F64: 0 | G64: 0 | H64: 0 | I64: 0 | J64: 0 | K64: 0 | L64: 0 | M64: 0 | N64: 0 | O64: 0 | P64: 0 | Q64: 0 | R64: 0 | S64: 0 | T64: 0 | U64: 0 | V64: 0 | W64: 0
B65: Myndighed | C65: =SUMPRODUCT(D65:W65,Inputark!$F$16:$Y$16) -> -1289450.288 | D65: =D26-D51 -> -109000 | E65: =E26-E51 -> -77189.18919 | F65: -77189.18919 | G65: -80460.81081 | H65: -83241.68919 | I65: -85605.43581 | J65: -87614.62044 | K65: -89322.42737 | L65: -90774.06327 | M65: -92007.95378 | N65: -93056.76071 | O65: -93948.2466 | P65: -94706.00961 | Q65: -95350.10817 | R65: -95897.59195 | S65: -96362.95315 | T65: -96758.51018 | U65: -97094.73365 | V65: -97380.52361 | W65: -97623.44506
B66: Difference
B67: Leverandør | C67: =SUMPRODUCT(D67:W67,Inputark!$E$16:$X$16) -> -100000 | D67: =D61+D64 -> -100000 | E67: =E61-E64 -> 0 | F67: 0 | G67: 0 | H67: 0 | I67: 0 | J67: 0 | K67: 0 | L67: 0 | M67: 0 | N67: 0 | O67: 0 | P67: 0 | Q67: 0 | R67: 0 | S67: 0 | T67: 0 | U67: 0 | V67: 0 | W67: 0
B68: Myndighed | C68: =SUMPRODUCT(D68:W68,Inputark!$E$16:$X$16) -> 121692.8564 | D68: =-(D62-D65) -> -10000 | E68: 21810.81081 | F68: 21810.81081 | G68: 18539.18919 | H68: 15758.31081 | I68: 13394.56419 | J68: 11385.37956 | K68: 9677.572627 | L68: 8225.936733 | M68: 6992.046223 | N68: 5943.239289 | O68: 5051.753396 | P68: 4293.990387 | Q68: 3649.891829 | R68: 3102.408054 | S68: 2637.046846 | T68: 2241.489819 | U68: 1905.266346 | V68: 1619.476394 | W68: 1376.554935
B72: Myndigheden betaler til investor
B74: Diskonterede værdier
D75: 2022 | E75: 2023 | F75: 2024 | G75: 2025 | H75: 2026 | I75: 2027 | J75: 2028 | K75: 2029 | L75: 2030 | M75: 2031 | N75: 2032 | O75: 2033 | P75: 2034 | Q75: 2035 | R75: 2036 | S75: 2037 | T75: 2038 | U75: 2039 | V75: 2040 | W75: 2041
B76: Skatteindtægter | D76: =D47*Inputark!E$16 -> 0 | E76: =E47*Inputark!F$16 -> 5797.101449 | F76: =F47*Inputark!G$16 -> 5601.064202 | G76: =G47*Inputark!H$16 -> 4599.907799 | H76: =H47*Inputark!I$16 -> 3777.702057 | I76: =I47*Inputark!J$16 -> 3102.460627 | J76: =J47*Inputark!K$16 -> 2547.914524 | K76: =K47*Inputark!L$16 -> 2092.490189 | L76: =L47*Inputark!M$16 -> 1718.470204 | M76: =M47*Inputark!N$16 -> 1411.304032 | N76: =N47*Inputark!O$16 -> 1159.041959 | O76: =O47*Inputark!P$16 -> 951.8702075 | P76: =P47*Inputark!Q$16 -> 781.7291559 | Q76: =Q47*Inputark!R$16 -> 641.9997899 | R76: =R47*Inputark!S$16 -> 527.2462043 | S76: =S47*Inputark!T$16 -> 433.0041291 | T76: =T47*Inputark!U$16 -> 355.6072558 | U76: =U47*Inputark!V$16 -> 292.0446062 | V76: =V47*Inputark!W$16 -> 239.8433964 | W76: =W47*Inputark!X$16 -> 196.9728376
B77: Overførselsindkomster | D77: =D48*Inputark!E$16 -> 0 | E77: =E48*Inputark!F$16 -> 10445.22784 | F77: =F48*Inputark!G$16 -> 10092.00757 | G77: =G48*Inputark!H$16 -> 8288.12216 | H77: =H48*Inputark!I$16 -> 6806.670373 | I77: =I48*Inputark!J$16 -> 5590.019147 | J77: =J48*Inputark!K$16 -> 4590.836981 | K77: =K48*Inputark!L$16 -> 3770.252593 | L77: =L48*Inputark!M$16 -> 3096.342709 | M77: =M48*Inputark!N$16 -> 2542.890148 | N77: =N48*Inputark!O$16 -> 2088.363889 | O77: =O48*Inputark!P$16 -> 1715.081455 | P77: =P48*Inputark!Q$16 -> 1408.521002 | Q77: =Q48*Inputark!R$16 -> 1156.756378 | R77: =R48*Inputark!S$16 -> 949.9931608 | S77: =S48*Inputark!T$16 -> 780.18762 | T77: =T48*Inputark!U$16 -> 640.7337942 | U77: =U48*Inputark!V$16 -> 526.2064977 | V77: =V48*Inputark!W$16 -> 432.1502638 | W77: =W48*Inputark!X$16 -> 354.9060137
B78: Beskæftigelsesindsats | D78: =D49*Inputark!E$16 -> 0 | E78: =E49*Inputark!F$16 -> 4830.917874 | F78: =F49*Inputark!G$16 -> 4667.553502 | G78: =G49*Inputark!H$16 -> 3833.256499 | H78: =H49*Inputark!I$16 -> 3148.085048 | I78: =I49*Inputark!J$16 -> 2585.383855 | J78: =J49*Inputark!K$16 -> 2123.262104 | K78: =K49*Inputark!L$16 -> 1743.741824 | L78: =L49*Inputark!M$16 -> 1432.058503 | M78: =M49*Inputark!N$16 -> 1176.086693 | N78: =N49*Inputark!O$16 -> 965.8682988 | O78: =O49*Inputark!P$16 -> 793.2251729 | P78: =P49*Inputark!Q$16 -> 651.4409633 | Q78: =Q49*Inputark!R$16 -> 534.9998249 | R78: =R49*Inputark!S$16 -> 439.3718369 | S78: =S49*Inputark!T$16 -> 360.8367742 | T78: =T49*Inputark!U$16 -> 296.3393798 | U78: =U49*Inputark!V$16 -> 243.3705052 | V78: =V49*Inputark!W$16 -> 199.869497 | W78: =W49*Inputark!X$16 -> 164.1440313
B79: Indsatsomkostninger | D79: =-IF(D83=betalingsår,D51+Resultater!$C$9,D51)*Inputark!E16 -> -10000 | E79: =-IF(E83=betalingsår,E51+Resultater!$C$9,E51)*Inputark!F16 -> -101858.1779 | F79: =-IF(F83=betalingsår,F51+Resultater!$C$9,F51)*Inputark!G16 -> 0 | G79: =-IF(G83=betalingsår,G51+Resultater!$C$9,G51)*Inputark!H16 -> 0 | H79: =-IF(H83=betalingsår,H51+Resultater!$C$9,H51)*Inputark!I16 -> 0 | I79: =-IF(I83=betalingsår,I51+Resultater!$C$9,I51)*Inputark!J16 -> 0 | J79: =-IF(J83=betalingsår,J51+Resultater!$C$9,J51)*Inputark!K16 -> 0 | K79: =-IF(K83=betalingsår,K51+Resultater!$C$9,K51)*Inputark!L16 -> 0 | L79: =-IF(L83=betalingsår,L51+Resultater!$C$9,L51)*Inputark!M16 -> 0 | M79: =-IF(M83=betalingsår,M51+Resultater!$C$9,M51)*Inputark!N16 -> 0 | N79: =-IF(N83=betalingsår,N51+Resultater!$C$9,N51)*Inputark!O16 -> 0 | O79: =-IF(O83=betalingsår,O51+Resultater!$C$9,O51)*Inputark!P16 -> 0 | P79: =-IF(P83=betalingsår,P51+Resultater!$C$9,P51)*Inputark!Q16 -> 0 | Q79: =-IF(Q83=betalingsår,Q51+Resultater!$C$9,Q51)*Inputark!R16 -> 0 | R79: =-IF(R83=betalingsår,R51+Resultater!$C$9,R51)*Inputark!S16 -> 0 | S79: =-IF(S83=betalingsår,S51+Resultater!$C$9,S51)*Inputark!T16 -> 0 | T79: =-IF(T83=betalingsår,T51+Resultater!$C$9,T51)*Inputark!U16 -> 0 | U79: =-IF(U83=betalingsår,U51+Resultater!$C$9,U51)*Inputark!V16 -> 0 | V79: =-IF(V83=betalingsår,V51+Resultater!$C$9,V51)*Inputark!W16 -> 0 | W79: =-IF(W83=betalingsår,W51+Resultater!$C$9,W51)*Inputark!X16 -> 0
B82: Akkumuleret
B83: Myndighed betaler til Investor | C83: NPV | D83: 2022 | E83: 2023 | F83: 2024 | G83: 2025 | H83: 2026 | I83: 2027 | J83: 2028 | K83: 2029 | L83: 2030 | M83: 2031 | N83: 2032 | O83: 2033 | P83: 2034 | Q83: 2035 | R83: 2036 | S83: 2037 | T83: 2038 | U83: 2039 | V83: 2040 | W83: 2041
B84: Myndighed | D84: =SUM(D85:D88) -> -10000 | E84: =SUM(E85:E88) -> -90784.93071 | F84: -70424.30544 | G84: -53703.01898 | H84: -39970.5615 | I84: -28692.69787 | J84: -19430.68427 | K84: -11824.19966 | L84: -5577.328245 | M84: -447.0473719 | N84: 3766.226775 | O84: 7226.40361 | P84: 10068.09473 | Q84: 12401.85072 | R84: 14318.46193 | S84: 15892.49045 | T84: =SUM(T85:T88) -> 17185.17088 | U84: 18246.79249 | V84: 19118.65565 | W84: 19834.67853
B85: Skatteindtægter | D85: =SUM($D$76:D76) -> 0 | E85: =SUM($D$76:E76) -> 5797.101449 | F85: =SUM($D$76:F76) -> 11398.16565 | G85: =SUM($D$76:G76) -> 15998.07345 | H85: =SUM($D$76:H76) -> 19775.77551 | I85: =SUM($D$76:I76) -> 22878.23613 | J85: =SUM($D$76:J76) -> 25426.15066 | K85: =SUM($D$76:K76) -> 27518.64085 | L85: =SUM($D$76:L76) -> 29237.11105 | M85: =SUM($D$76:M76) -> 30648.41508 | N85: =SUM($D$76:N76) -> 31807.45704 | O85: =SUM($D$76:O76) -> 32759.32725 | P85: =SUM($D$76:P76) -> 33541.0564 | Q85: =SUM($D$76:Q76) -> 34183.05619 | R85: =SUM($D$76:R76) -> 34710.3024 | S85: =SUM($D$76:S76) -> 35143.30653 | T85: =SUM($D$76:T76) -> 35498.91378 | U85: =SUM($D$76:U76) -> 35790.95839 | V85: =SUM($D$76:V76) -> 36030.80179 | W85: =SUM($D$76:W76) -> 36227.77462
B86: Overførselsindkomst | D86: =SUM($D$77:D77) -> 0 | E86: =SUM($D$77:E77) -> 10445.22784 | F86: =SUM($D$77:F77) -> 20537.23541 | G86: =SUM($D$77:G77) -> 28825.35757 | H86: =SUM($D$77:H77) -> 35632.02794 | I86: =SUM($D$77:I77) -> 41222.04709 | J86: =SUM($D$77:J77) -> 45812.88407 | K86: =SUM($D$77:K77) -> 49583.13666 | L86: =SUM($D$77:L77) -> 52679.47937 | M86: =SUM($D$77:M77) -> 55222.36952 | N86: =SUM($D$77:N77) -> 57310.73341 | O86: =SUM($D$77:O77) -> 59025.81486 | P86: =SUM($D$77:P77) -> 60434.33586 | Q86: =SUM($D$77:Q77) -> 61591.09224 | R86: =SUM($D$77:R77) -> 62541.0854 | S86: =SUM($D$77:S77) -> 63321.27302 | T86: =SUM($D$77:T77) -> 63962.00682 | U86: =SUM($D$77:U77) -> 64488.21332 | V86: =SUM($D$77:V77) -> 64920.36358 | W86: =SUM($D$77:W77) -> 65275.26959
B87: Beskæftigelsesindsats | D87: =SUM($D$78:D78) -> 0 | E87: =SUM($D$78:E78) -> 4830.917874 | F87: =SUM($D$78:F78) -> 9498.471376 | G87: =SUM($D$78:G78) -> 13331.72788 | H87: =SUM($D$78:H78) -> 16479.81292 | I87: =SUM($D$78:I78) -> 19065.19678 | J87: =SUM($D$78:J78) -> 21188.45888 | K87: =SUM($D$78:K78) -> 22932.20071 | L87: =SUM($D$78:L78) -> 24364.25921 | M87: =SUM($D$78:M78) -> 25540.3459 | N87: =SUM($D$78:N78) -> 26506.2142 | O87: =SUM($D$78:O78) -> 27299.43937 | P87: =SUM($D$78:P78) -> 27950.88034 | Q87: =SUM($D$78:Q78) -> 28485.88016 | R87: =SUM($D$78:R78) -> 28925.252 | S87: =SUM($D$78:S78) -> 29286.08877 | T87: =SUM($D$78:T78) -> 29582.42815 | U87: =SUM($D$78:U78) -> 29825.79866 | V87: =SUM($D$78:V78) -> 30025.66816 | W87: =SUM($D$78:W78) -> 30189.81219
B88: Indsatsomkostninger | D88: =SUM($D$79:D79) -> -10000 | E88: =SUM($D$79:E79) -> -111858.1779 | F88: =SUM($D$79:F79) -> -111858.1779 | G88: =SUM($D$79:G79) -> -111858.1779 | H88: =SUM($D$79:H79) -> -111858.1779 | I88: =SUM($D$79:I79) -> -111858.1779 | J88: =SUM($D$79:J79) -> -111858.1779 | K88: =SUM($D$79:K79) -> -111858.1779 | L88: =SUM($D$79:L79) -> -111858.1779 | M88: =SUM($D$79:M79) -> -111858.1779 | N88: =SUM($D$79:N79) -> -111858.1779 | O88: =SUM($D$79:O79) -> -111858.1779 | P88: =SUM($D$79:P79) -> -111858.1779 | Q88: =SUM($D$79:Q79) -> -111858.1779 | R88: =SUM($D$79:R79) -> -111858.1779 | S88: =SUM($D$79:S79) -> -111858.1779 | T88: =SUM($D$79:T79) -> -111858.1779 | U88: =SUM($D$79:U79) -> -111858.1779 | V88: =SUM($D$79:V79) -> -111858.1779 | W88: =SUM($D$79:W79) -> -111858.1779
B90: Beskæftigelseseffekt | D90: 2022 | E90: 2023 | F90: 2024 | G90: 2025 | H90: 2026 | I90: 2027 | J90: 2028 | K90: 2029 | L90: 2030 | M90: 2031 | N90: 2032 | O90: 2033 | P90: 2034 | Q90: 2035 | R90: 2036 | S90: 2037 | T90: 2038 | U90: 2039 | V90: 2040 | W90: 2041
B91: Baseline | D91: =Dashboard!$D$13 -> 0.2 | E91: =Dashboard!$D$13 -> 0.2 | F91: =Dashboard!$D$13 -> 0.2 | G91: =Dashboard!$D$13 -> 0.2 | H91: =Dashboard!$D$13 -> 0.2 | I91: =Dashboard!$D$13 -> 0.2 | J91: =Dashboard!$D$13 -> 0.2 | K91: =Dashboard!$D$13 -> 0.2 | L91: =Dashboard!$D$13 -> 0.2 | M91: =Dashboard!$D$13 -> 0.2 | N91: =Dashboard!$D$13 -> 0.2 | O91: =Dashboard!$D$13 -> 0.2 | P91: =Dashboard!$D$13 -> 0.2 | Q91: =Dashboard!$D$13 -> 0.2 | R91: =Dashboard!$D$13 -> 0.2 | S91: =Dashboard!$D$13 -> 0.2 | T91: =Dashboard!$D$13 -> 0.2 | U91: =Dashboard!$D$13 -> 0.2 | V91: =Dashboard!$D$13 -> 0.2 | W91: =Dashboard!$D$13 -> 0.2
B92: Indsats | D92: =IF(D83<=slutår,D91,IF(D83-slutår<=Dashboard!$D$26+D91,D91+Dashboard!$D$25,D91+(C92-D91)*(1-Dashboard!$D$27))) -> 0.2 | E92: =IF(E83<=slutår,E91,IF(E83-slutår<=Dashboard!$D$26+E91,E91+Dashboard!$D$25,E91+(D92-E91)*(1-Dashboard!$D$27))) -> 0.4 | F92: =IF(F83<=slutår,F91,IF(F83-slutår<=Dashboard!$D$26+F91,F91+Dashboard!$D$25,F91+(E92-F91)*(1-Dashboard!$D$27))) -> 0.4 | G92: =IF(G83<=slutår,G91,IF(G83-slutår<=Dashboard!$D$26+G91,G91+Dashboard!$D$25,G91+(F92-G91)*(1-Dashboard!$D$27))) -> 0.37 | H92: =IF(H83<=slutår,H91,IF(H83-slutår<=Dashboard!$D$26+H91,H91+Dashboard!$D$25,H91+(G92-H91)*(1-Dashboard!$D$27))) -> 0.3445 | I92: =IF(I83<=slutår,I91,IF(I83-slutår<=Dashboard!$D$26+I91,I91+Dashboard!$D$25,I91+(H92-I91)*(1-Dashboard!$D$27))) -> 0.322825 | J92: =IF(J83<=slutår,J91,IF(J83-slutår<=Dashboard!$D$26+J91,J91+Dashboard!$D$25,J91+(I92-J91)*(1-Dashboard!$D$27))) -> 0.30440125 | K92: =IF(K83<=slutår,K91,IF(K83-slutår<=Dashboard!$D$26+K91,K91+Dashboard!$D$25,K91+(J92-K91)*(1-Dashboard!$D$27))) -> 0.2887410625 | L92: =IF(L83<=slutår,L91,IF(L83-slutår<=Dashboard!$D$26+L91,L91+Dashboard!$D$25,L91+(K92-L91)*(1-Dashboard!$D$27))) -> 0.2754299031 | M92: =IF(M83<=slutår,M91,IF(M83-slutår<=Dashboard!$D$26+M91,M91+Dashboard!$D$25,M91+(L92-M91)*(1-Dashboard!$D$27))) -> 0.2641154177 | N92: =IF(N83<=slutår,N91,IF(N83-slutår<=Dashboard!$D$26+N91,N91+Dashboard!$D$25,N91+(M92-N91)*(1-Dashboard!$D$27))) -> 0.254498105 | O92: =IF(O83<=slutår,O91,IF(O83-slutår<=Dashboard!$D$26+O91,O91+Dashboard!$D$25,O91+(N92-O91)*(1-Dashboard!$D$27))) -> 0.2463233893 | P92: =IF(P83<=slutår,P91,IF(P83-slutår<=Dashboard!$D$26+P91,P91+Dashboard!$D$25,P91+(O92-P91)*(1-Dashboard!$D$27))) -> 0.2393748809 | Q92: =IF(Q83<=slutår,Q91,IF(Q83-slutår<=Dashboard!$D$26+Q91,Q91+Dashboard!$D$25,Q91+(P92-Q91)*(1-Dashboard!$D$27))) -> 0.2334686487 | R92: =IF(R83<=slutår,R91,IF(R83-slutår<=Dashboard!$D$26+R91,R91+Dashboard!$D$25,R91+(Q92-R91)*(1-Dashboard!$D$27))) -> 0.2284483514 | S92: =IF(S83<=slutår,S91,IF(S83-slutår<=Dashboard!$D$26+S91,S91+Dashboard!$D$25,S91+(R92-S91)*(1-Dashboard!$D$27))) -> 0.2241810987 | T92: =IF(T83<=slutår,T91,IF(T83-slutår<=Dashboard!$D$26+T91,T91+Dashboard!$D$25,T91+(S92-T91)*(1-Dashboard!$D$27))) -> 0.2205539339 | U92: =IF(U83<=slutår,U91,IF(U83-slutår<=Dashboard!$D$26+U91,U91+Dashboard!$D$25,U91+(T92-U91)*(1-Dashboard!$D$27))) -> 0.2174708438 | V92: =IF(V83<=slutår,V91,IF(V83-slutår<=Dashboard!$D$26+V91,V91+Dashboard!$D$25,V91+(U92-V91)*(1-Dashboard!$D$27))) -> 0.2148502172 | W92: =IF(W83<=slutår,W91,IF(W83-slutår<=Dashboard!$D$26+W91,W91+Dashboard!$D$25,W91+(V92-W91)*(1-Dashboard!$D$27))) -> 0.2126226847

Sheet SIB projektet
B1: SIB-indsatsen
B4: DRC/Dansk Flygtningehjælp har med støtte fra Poul Due Jensens Fond udviklet og gennemført en beskæftigelsesindsats for 55 længerevarende ledige ikke-vestlige mænd i Viborg og Herning Kommuner i perioden 1. oktober 2020 til 30. april 2022. COWI har forestået dokumentationen af beskæftigelsesindsatsen, herunder en samfundsøkonomisk og budgetøkonomisk analyse. Analysen viser, at beskæftigelsesindsatsen giver en budgetøkonomisk gevinst. Mens udviklingsprojektet ikke indebar en betalingmodel, betyder en sådan gevinst, at den givne beskæftigelsesindsats godt kunne have fundet sted via en betalingsmodel, hvor myndigheden (f.eks. en kommune) betaler en investor (f.eks. Poul Due Jensens Fond), der betaler en leverandør (f.eks. Dansk Flygtningehjælp), som gennemfører indsatsen. For en mere detaljeret beskrivelse, se de to COWI-notater: "Samfundsøkonomisk analyse af SIB-projektet" og "Betalingsmodel for SIB-projektet".
B10: UDGIFTER
B12: Aktør | C12: Udgifter: kr. pr. deltager i SIB-indsatsen
B13: Dansk Flygtningehjælp | C13: 75255
B14: Herning/Viborg Kommune | C14: 5146
B15: I alt | C15: =SUM(C13:C14) -> 80401
B16: Kilde: Dansk Flygtningehjælp, Herning og Viborg Kommuner, og COWI
B18: INDTÆGTER
B20: Antagelser
B21: Beskæftigelseseffekt, % | C21: 0.176
B22: - målgruppe | C22: 0.35
B23: - kontrolgruppe | C23: =C22-C21 -> 0.174
B24: Årligt fald i beskæftigelseseffekt efter 2 år | C24: 0.15
B25: Arbejdstid, timer pr. år | C25: 565
B26: Arbejdstid, kr. pr. time | C26: 164
B27: Antal timer på overførselsind. pr. uge | C27: 21
B28: Kommunal skattesats | C28: 0.2
B29: Statsskattesats | C29: 0.1
B30: Alm. indsats, kr. person pr. år | C30: 26150
B31: Besparelse på alm. indsats, % (2 første år) | C31: 0.5
B32: Nuværende overførselsindkomst til en gennemsnitlig deltager, kr. pr. år | C32: 105032
B33: Statsrefusion på kommunale udgifter til overførselsindkomst | C33: 0.2
B34: Kilde: Dansk Flygtningehjælp, Herning og Viborg Kommuner, og COWI
B36: BUDGETØKONOMISK RESULTAT
B39: Udgifter og indtægter | C39: Nutidsværdi
C40: Kr.
B41: Udgifter | C41: =C42+C43 -> -79235.66455
B42: Dansk Flygtningehjælp | C42: -74164.60262
B43: Kommune | C43: -5071.061924
B45: Indtægter | C45: =C46+C47+C48 -> 107588.3732
B46: Øgede skatteindtægter (kommune) | C46: 18866.60914
B47: Sparede overførselsesindkomsker (kommune) | C47: 36356.57749
B48: Sparet beskæftigelsesindsats (kommune) | C48: 52365.18655
B50: Indtægter - udgifter | C50: =C51+C52 -> 28352.70863
B51: Dansk Flygtningehjælp | C51: =C42 -> -74164.60262
B52: Kommune | C52: =C45+C43 -> 102517.3113
B53: Note: Negative beløb er udgifter og positive beløb er indtægter.
B57: Investors andel af økonomisk råderum | C57: 0.5
C59: Kr. pr. person pr. SIB-forløb (NPV)
B60: Økonomisk råderum | C60: =C50 -> 28352.70863
B61: Eksempel - en deling af det økonomiske råderum | C61: =C60*C57 -> 14176.35431
B62: Kommune betaler Dansk Flygtningehjælp i gennemsnit pr. deltager | C62: =C61-C51 -> 88340.95694
B64: Antal år før kommunen opnår budgetøkonomisk overskud for en gennemsnitlig deltager | C64: 8
B66: Kommune betaler Dansk Flygtningehjælp, kr. pr. person der kommer i beskæftigelse | C66: =C62/E73 -> 254801.5083
B68: Nogle deltagere er sværere at få i beskæftigelse end andre
B69: Beskæftigelseserfaring de sidste to år: | C69: Andel af deltagere | D69: I beskæftigelse efter forløb
D70: Nej | E70: Ja
B71: Ja | C71: 0.35 | D71: 0.4737 | E71: 0.5263
B72: Nej | C72: 0.65 | D72: 0.75 | E72: 0.25
B73: Vægtede gns. | D73: =(D71*$C$71)+($C$72*D72) -> 0.653295 | E73: =(E71*$C$71)+($C$72*E72) -> 0.346705
B75: Kommune betaler Dansk Flygtningehjælp, kr. pr. person der kommer i beskæftigelse | C75: Kr. pr. person i beskæftigelse | E75: hjælpeberegning
B76: Beskæftigelseserfaring | C76: =C66-E76 -> 209040.4314 | E76: =F76*C66 -> 45761.07688 | F76: =(E71-E73) -> 0.179595
B77: Ingen beskæftigelseserfaring | C77: =E77+C66 -> 279442.0882 | E77: =F77*C66 -> 24640.57986 | F77: =(E73-E72) -> 0.096705
B78: Gennemsnit | C78: =(C71*C76)+(C72*C77) -> 254801.5083 | F78: =C66 -> 254801.5083

Sheet Standarder
B1: =MID(CELL("filename",A1),1+FIND("]",CELL("filename",A1)),99) -> Standarder
B4: Standarder for celler
D7: Tekst
D8: Input data
D9: Link til andre celler
D10: Formler
D11: Tentativ data
B14: Standarder for ark
D17: Lyseblå ark er ark med datainput
D18: Hvide ark er ark er informationsark til brugeren vedrørende modellen
D19: Grå ark indeholder beregninger

Sheet Lister
B1: Lister
B4: Antal år før beskæftigelses fald | E4: Projektperiode
B5: =_xlfn.SEQUENCE(Dashboard!D26,,Dashboard!D20,1) -> 2022 | E5: =_xlfn.SEQUENCE(Dashboard!$D$23,,Dashboard!D20,1) -> 2022
B6: 2023
B21: Startår for beskæftigelseeffekt
B22: =Dashboard!D21+1 -> 2023
